Cogmind - Beta 9.6 @@@ ROGUE MODE // 2020.04.24 @ 22:16:34 // Winter2019/RPGLIKE Player: mr_sack Result: Destroyed by G-34 Mercenary with Small Laser Performance ------------- Evolutions (1) 500 Regions Visited (3) 600 Robots Destroyed (94) 470 Value Destroyed (1975) 1975 Prototype IDs (5) 100 Alien Tech Used (0) 0 Bonus (204) 204 TOTAL SCORE: 3849 Bonus ------- High Alert Combat Kills 204 Cogmind --------- Core Integrity 0/800 Matter 352/400 Energy 365/365 System Corruption 6% Temperature Cool (30) Movement Walking (120) Location -9/Materials Parts ------- > --- POWER (1) -------- Reinforced Ion Engine > --- PROPULSION (3) --- Aluminum Leg Aluminum Leg Improved Aluminum Leg > --- UTILITY (3) ------ Heat Sink Signal Interpreter Improved Terrain Scanner > --- WEAPON (4) ------- Advanced Beam Cannon Advanced Beam Cannon Improved Assault Rifle Improved Assault Rifle > --- INVENTORY (5) ---- Ion Engine Medium Matter Pod (100) Hacking Suite Mining Laser Peak State ------------ > --- POWER ------------ Improved Ion Engine > --- PROPULSION ------- Aluminum Leg Aluminum Leg Improved Aluminum Leg > --- UTILITY ---------- Signal Interpreter Improved Terrain Scanner High-powered Tractor Beam > --- WEAPON ----------- Advanced Beam Cannon Advanced Beam Cannon Improved Assault Rifle Improved Assault Rifle > --- INVENTORY -------- Ion Engine Medium Matter Pod Improved Assault Rifle Mining Laser [Rating: 23] Favorites ----------- Power Improved Ion Engine Engine Improved Ion Engine Propulsion Aluminum Leg Leg Aluminum Leg Utility Improved Terrain Scanner Device Improved Terrain Scanner Processor Seismic Analyzer Weapon Beam Rifle Energy Gun Beam Rifle Energy Cannon Advanced Beam Cannon Ballistic Gun Improved Assault Rifle Build | -11 -10 -10 -9 ------- Run | Scr Mat Min Mat Slots Evolved 7 | 3 . . 4 Power . | . . . . Propulsion 2 | 1 . . 1 Utility 2 | 1 . . 1 Weapon 3 | 1 . . 2 Parts Attached 58 | 8 . 3 47 Power 9 | 2 . 1 6 Engine 9 | 2 . 1 6 Core . | . . . . Reactor . | . . . . Propulsion 16 | 2 . . 14 Treads . | . . . . Leg 16 | 2 . . 14 Wheel . | . . . . Hover . | . . . . Flight . | . . . . Utility 7 | 2 . . 5 Device 4 | 1 . . 3 Storage . | . . . . Processor 3 | 1 . . 2 Hackware . | . . . . Protection . | . . . . Artifact . | . . . . Weapon 26 | 2 . 2 22 Energy Gun 10 | 1 . 1 8 Energy Cannon 3 | . . . 3 Ballistic Gun 13 | 1 . 1 11 Ballistic Cannon . | . . . . Launcher . | . . . . Special Weapon . | . . . . Impact Weapon . | . . . . Slashing Weapon . | . . . . Piercing Weapon . | . . . . Special Melee Weapon . | . . . . Unidentified Prototypes 4 | . . . 4 Parts Lost 2 | . . . 2 Power . | . . . . Propulsion . | . . . . Utility 2 | . . . 2 Weapon . | . . . . Highest Loss Streak 1 | . . . 1 Average Slot Usage (%) 97 | . 100 100 96 Engine 12 | . 14 14 11 Leg 24 | . 28 28 23 Device 16 | . 14 14 18 Processor 10 | . 14 14 9 Energy Gun 13 | . 14 14 13 Energy Cannon 3 | . . . 5 Ballistic Gun 14 | . 14 14 14 Naked Turns . | . . . . Heaviest Build 26 | 9 9 14 26 Greatest Support 38 | 20 20 25 38 Greatest Overweight (x) 1 | 1 . . . Average Overweight (x) . | . . . . Largest Inventory Capacity 5 | 1 1 3 5 Average Capacity 3 | 1 1 1 4 Most Carried 5 | 1 1 3 5 Average Carried 3 | . 1 1 4 Final Capacity 5 | 1 1 3 5 Final Carried 4 | 1 1 3 4 Class Distribution -------------------- 62% | Scavenger-Skirmisher 30% | Mutant 4% | Scavenger-Mutant 3% | Skirmisher Dominant Class ---------------- Mutant | -10/Materials Mutant | -10/Mines Scavenger-Skirmisher | -9/Materials Resources | -11 -10 -10 -9 ----------- Run | Scr Mat Min Mat Matter Collected 1717 | 386 13 90 1228 Remotely 708 | . . . 708 Salvage Created 3287 | 114 231 453 2489 Parts 206 | 7 12 27 160 Haulers Intercepted 3 | . . . 3 Recyclers Shooed 8 | 1 1 3 3 Parts Field Recycled . | . . . . Retrieved Matter . | . . . . Parts Self-Destructed . | . . . . Prevented . | . . . . Kills | -11 -10 -10 -9 ------- Run | Scr Mat Min Mat Combat Hostiles Destroyed 56 | . . 10 46 Guns 48 | . . 10 38 Cannons 6 | . . . 6 AOE 2 | . . . 2 Classes Destroyed 14 | 2 2 2 8 Worker 14 | . 1 4 9 Builder 1 | . . . 1 Tunneler 3 | 1 . 1 1 Hauler 3 | . . . 3 Recycler 7 | 1 2 3 1 Mechanic 1 | . . . 1 Operator 3 | . . . 3 Watcher 6 | . 2 . 4 Swarmer 17 | . . 8 9 Grunt 25 | . . 2 23 Brawler 3 | . . . 3 Duelist 1 | . . . 1 Protector 1 | . . . 1 Sentry 9 | . . . 9 Best Kill Streak 7 | 2 2 3 7 Combat Bots Only 7 | . . 3 7 Max Kills in Single Turn 2 | 1 1 2 2 Gunslinging 1 | . . 1 1 Exploded 2 | . . . 2 Melee . | . . . . Uniques/NPCs Destroyed . | . . . . Combat | -11 -10 -10 -9 -------- Run | Scr Mat Min Mat Damage Taken 2664 | . . 272 2392 Core 2159 | . . 222 1937 Absorbed by Shields . | . . . . Redirected to Core 1671 | . . 163 1508 Core Remaining (%) 100 | 100 . 100 . Volleys Fired 234 | 6 13 48 167 Largest 4 | 2 2 2 4 Hottest 182 | 70 70 73 182 Shots Fired 520 | 12 26 96 386 Gun 467 | 12 26 96 333 Cannon 53 | . . . 53 Launcher . | . . . . Special . | . . . . Kinetic 268 | 6 13 48 201 Thermal 201 | 6 13 48 134 Explosive . | . . . . Electromagnetic 51 | . . . 51 Robot Hit Streak 20 | 6 9 20 15 Robot Miss Streak 4 | 1 1 4 4 Penetration Max . | . . . . Secondary Targets 5 | . . 1 4 Max Gunslinging Chain 1 | . . 1 1 Shots Hit Robots 318 | 8 18 67 225 Core Hits 148 | 3 8 29 108 Critical Hits 7 | . . 1 6 Critical Kills 5 | . . 1 4 Critical Parts Destroyed 2 | . . . 2 Melee Attacks . | . . . . Impact . | . . . . Slashing . | . . . . Piercing . | . . . . Sneak Attacks . | . . . . Combat Hostiles . | . . . . Follow-up Attacks . | . . . . Damage Inflicted 4626 | 81 189 703 3653 Guns 3745 | 81 189 703 2772 Cannons 751 | . . . 751 Explosions 127 | . . . 127 Melee . | . . . . Ramming 3 | . . . 3 Kinetic 1750 | 20 66 215 1449 Thermal 2175 | 61 123 488 1503 Explosive . | . . . . Electromagnetic 698 | . . . 698 Impact . | . . . . Slashing . | . . . . Piercing . | . . . . Highest Corruption 6 | . . . 6 Average Corruption 4 | . . . 4 Corruption Purged . | . . . . Effects 45 | . . . 45 Message Errors 9 | . . . 9 Matter Fused 10 | . . . 10 Heat Flow Errors 2 | . . . 2 Energy Discharges 7 | . . . 7 Data Loss (minor) 10 | . . . 10 Targeting Errors 6 | . . . 6 Weapon Failures 1 | . . . 1 Overload Shots . | . . . . Overflow Damage 9 | . . . 9 Projectiles . | . . . . Explosions 9 | . . . 9 Melee . | . . . . Knockbacks . | . . . . Impact . | . . . . Kinetic . | . . . . Secondary . | . . . . Self-Inflicted Damage 115 | . . . 115 Shots 3 | . . . 3 Rammed 1 | . . . 1 Targets Rammed 1 | . . . 1 Kicked . | . . . . Crushed . | . . . . Highest Temperature 598 | 70 60 140 598 Average Temperature 107 | 34 24 43 135 Received Heat Transfer 777 | . . 39 738 Effects 23 | . . . 23 Shutdowns 4 | . . . 4 Energy Bleed 2 | . . . 2 Interference 7 | . . . 7 Matter Decay 1 | . . . 1 Short Circuit 3 | . . . 3 Damage (minor) 3 | . . . 3 Damage (major) 3 | . . . 3 Siege Activations . | . . . . Robots Corrupted . | . . . . Combat Hostiles . | . . . . Parts Fried . | . . . . Impact Corruptions . | . . . . Robots Melted . | . . . . Combat Hostiles . | . . . . Parts Melted 7 | 1 . 4 2 Heat Transferred 5069 | 185 370 1443 3071 Parts Sabotaged . | . . . . Parts Stolen . | . . . . Parts Stripped . | . . . . Power Chain Reactions 3 | . . . 3 Missiles Intercepted . | . . . . Alert | -11 -10 -10 -9 ------- Run | Scr Mat Min Mat Peak Influence 787 | 10 68 206 787 Average Influence 261 | 4 33 92 353 Maximum Alert Level 3 | . . 1 3 Low Security (%) 46 | 100 100 91 23 Level 1 23 | . . 8 31 Level 2 28 | . . . 42 Level 3 2 | . . . 3 Level 4 . | . . . . Level 5 . | . . . . High Security . | . . . . Max Security . | . . . . Squads Dispatched 8 | . 1 . 7 Investigation 1 | . 1 . . Extermination . | . . . . Reinforcement 5 | . . . 5 Assault 2 | . . . 2 Garrison . | . . . . Intercept . | . . . . Construction Impeded 1 | . . . 1 Haulers Reinforced . | . . . . Stealth | -11 -10 -10 -9 --------- Run | Scr Mat Min Mat Distress Signals 6 | . . 1 5 Communications Jammed . | . . . . Distress Signals . | . . . . Times Spotted 84 | . 2 12 70 Peak Tracking Total 9 | . 1 3 9 Tactical Retreats 7 | . . 1 6 Traps | -11 -10 -10 -9 ------- Run | Scr Mat Min Mat Traps Triggered . | . . . . Indirectly . | . . . . Trap Hack Attempts . | . . . . Triggered . | . . . . Disarmed . | . . . . Reprogrammed . | . . . . Reused . | . . . . Traps Extracted . | . . . . Installed . | . . . . Triggered . | . . . . Machines | -11 -10 -10 -9 ---------- Run | Scr Mat Min Mat Machines Disabled 7 | . . 1 6 Max in Single Turn 2 | . . 1 2 Machines Sabotaged . | . . . . Garrisons Compromised . | . . . . Overloaded Fab Kills . | . . . . Fab Network Shutdowns . | . . . . Hacking | -11 -10 -10 -9 --------- Run | Scr Mat Min Mat Machines Accessed 9 | . 1 . 8 Terminals 7 | . 1 . 6 Fabricators . | . . . . Repair Stations 2 | . . . 2 Recycling Units . | . . . . Scanalyzers . | . . . . Garrison Access . | . . . . Total Hacks 28 | . 2 . 26 Successful 16 | . 1 . 15 Failed 12 | . 1 . 11 Catastrophic 3 | . 1 . 2 Database Lockouts . | . . . . Manual 5 | . . . 5 Terminals 20 | . 2 . 18 Fabricators . | . . . . Repair Stations 8 | . . . 8 Recycling Units . | . . . . Scanalyzers . | . . . . Garrison Access . | . . . . Terminal Hacks 11 | . 1 . 10 Robot Analysis 1 | . . . 1 Prototype ID Bank 1 | . . . 1 Level Access Points 2 | . 1 . 1 Terminal Index 1 | . . . 1 Alert Level 2 | . . . 2 Unreport Threat 1 | . . . 1 Locate Traps 2 | . . . 2 Zone Layout 1 | . . . 1 Fabricator Hacks . | . . . . Repair Station Hacks 5 | . . . 5 Scan Component 3 | . . . 3 Repair 2 | . . . 2 Recycling Unit Hacks . | . . . . Scanalyzer . | . . . . Garrison Access Hacks . | . . . . Unauthorized Hacks . | . . . . Terminals . | . . . . Fabricators . | . . . . Repair Stations . | . . . . Recycling Units . | . . . . Scanalyzers . | . . . . Garrison Access . | . . . . Data Cores Recovered . | . . . . Used . | . . . . Hacking Detections 8 | . 1 . 7 Full Trace Events 2 | . 1 . 1 Feedback Events . | . . . . Feedback Blocked . | . . . . Robot Schematics Acquired . | . . . . Robots Built . | . . . . Matter . | . . . . Time . | . . . . Total Robot Build Rating . | . . . . Part Schematics Acquired . | . . . . Parts Built . | . . . . Matter . | . . . . Time . | . . . . Total Part Build Rating . | . . . . Parts Repaired 2 | . . . 2 Time 58 | . . . 58 Parts Recycled . | . . . . Recycled Matter . | . . . . Retrieved Matter . | . . . . Retrieved Components . | . . . . Parts Scanalyzed . | . . . . Part Schematics Acquired . | . . . . Parts Damaged . | . . . . Bothacking | -11 -10 -10 -9 ------------ Run | Scr Mat Min Mat Used RIF Installer . | . . . . Robots Hacked . | . . . . Non-combat . | . . . . Combat . | . . . . Robot Hacks Applied . | . . . . Relay Couplers Released . | . . . . Robots Rewired . | . . . . Allies Hacked . | . . . . Hacks Repelled . | . . . . Allies | -11 -10 -10 -9 -------- Run | Scr Mat Min Mat Total Allies . | . . . . Largest Group . | . . . . Highest-Rated Group . | . . . . Highest-Rated Ally . | . . . . Total Orders . | . . . . Ally Attacks . | . . . . Total Damage . | . . . . Kills . | . . . . Allies Corrupted . | . . . . Allies Melted . | . . . . Intel | -11 -10 -10 -9 ------- Run | Scr Mat Min Mat Robot Analysis Total 1 | . . . 1 Derelict Logs Recovered 1 | . . 1 . Drone Launches . | . . . . Drone Recoveries . | . . . . Exploration | -11 -10 -10 -9 ------------- Run | Scr Mat Min Mat Turns Passed 3812 | 92 216 951 2553 Spaces Moved 2195 | 58 150 661 1326 Core 12 | 12 . . . Treads . | . . . . Legs 2183 | 46 150 661 1326 Wheels . | . . . . Hover . | . . . . Flight . | . . . . Fastest Speed 50 | 50 120 120 120 Average Speed 119 | 110 120 120 120 Slowest Speed 120 | 120 120 120 120 Overloaded Moves . | . . . . Propulsion Burnouts . | . . . . Robots Hopped . | . . . . Cave-ins Triggered . | . . . . Exploration Rate (%) 52 | 4 21 99 84 Regions Visited 3 Branch Regions 1 Pre-discovered Areas 2 | . . 2 . Known Exits Taken 1 | . . 1 . Unknown Exits Taken 2 | 1 1 . . Scrap Searched 1 | . . 1 . Spaces Dug . | . . . . Terrain Destroyed 57 | . . . 57 Melee . | . . . . Projectile . | . . . . AOE 57 | . . . 57 Actions | -11 -10 -10 -9 --------- Run | Scr Mat Min Mat Total 2947 | 71 162 734 1980 Wait 336 | . . 1 335 Move 2192 | 57 149 660 1326 Hop . | . . . . Pick Up 19 | . . 4 15 Fast Attach 17 | 7 . . 10 Attach 5 | . . . 5 Detach 1 | . . . 1 Swap 36 | 1 . 3 32 Drop 43 | . . 5 38 Fire 234 | 6 13 48 167 Melee . | . . . . Ram . | . . . . Kick 1 | . . . 1 Crush . | . . . . Escape Stasis . | . . . . Rewire . | . . . . Trap . | . . . . Miscellaneous 63 | . . 13 50 Route ------- -11/Scrapyard -10/Materials (discovered 4 exits: Mat x3 / [*Min]) -10/Mines (discovered 3 exits: *Mat x2 / [*Exi]) -9/Materials (discovered 5 exits: *Mat x3 / [*Min x2]) History --------- Turn | Location | Event 1 | -11/Scrapyard | Upgraded with Propulsion slot (x1) 1 | -11/Scrapyard | Upgraded with Utility slot (x1) 1 | -11/Scrapyard | Upgraded with Weapon slot (x1) 9 | -11/Scrapyard | Discovered new exit (range 16) 93 | -11/Scrapyard | Entered Materials 167 | -10/Materials | Discovered new exit (range 17) 285 | -10/Materials | Identified exit to Materials 303 | -10/Materials | Build established: Mutant 309 | -10/Materials | Entered Mines 370 | -10/Mines | Learned location of Storage (-7) 377 | -10/Mines | Discovered exit to Materials (range 12) 832 | -10/Mines | Reached level 2 968 | -10/Mines | Deemed a non-threat by the Exiles lab entrance 969 | -10/Mines | Discovered new exit (range 5) 1026 | -10/Mines | Discovered exit to Materials (range 5) 1125 | -10/Mines | Joined a pair of Derelicts in attacking an 0b10 outpost 1260 | -10/Mines | Entered Materials 1262 | -9/Materials | Reached level 3 1360 | -9/Materials | Repaired Aluminum Leg 1394 | -9/Materials | Repaired Hvy. Assault Rifle 1404 | -9/Materials | Discovered new exit (range 7) 1604 | -9/Materials | Identified exit to Materials 1837 | -9/Materials | Reached level 4 1846 | -9/Materials | Build established: Scavenger-Skirmisher 1873 | -9/Materials | Upgraded with Utility slot (x1) 2055 | -9/Materials | Core integrity fell below 50% 2137 | -9/Materials | Reached level 5 2140 | -9/Materials | Core integrity fell below 20% 2176 | -9/Materials | Destroyed 7 combat bots 2180 | -9/Materials | Upgraded with Weapon slot (x1) 2765 | -9/Materials | Reached level 6 2773 | -9/Materials | Upgraded with Weapon slot (x1) 3260 | -9/Materials | First assault squad dispatched 3519 | -9/Materials | Discovered new exit (range 14) 3548 | -9/Materials | Reached level 7 3552 | -9/Materials | Upgraded with Propulsion slot (x1) 3813 | -9/Materials | Destroyed by G-34 Mercenary with Small Laser Last Messages --------------- 03764_ L>|%IMBRGT4ACD9YVNOX 03765_ S-10 Pest destroyed. 03767_ K-01 Serf collects debris. 03768_ K-01 Serf destroyed. 03771_ Acquired 84 matter. 03772_ K-01 Serf collects debris. 03775_ Dropped Imp. Ion Engine. 03780_ K-01 Serf collects debris. 03780_ Acquired Heat Sink. 03782_ W-16 Scout sends out distress signal. 03783_ Dropped Imp. Ion Engine. 03783_ K-01 Serf collects debris. 03785_ Dropped Heat Sink. 03787_ System corrupted: Matter fused (-9). 03787_ Dropped Broken Imp. Assault Rifle. 03787_ K-01 Serf collects debris. 03788_ Acquired 51 matter. 03791_ K-01 Serf collects debris. 03806_ System corrupted: Imp. Assault Rifle targeting data glitched. 03809_ K-01 Serf collects debris. Map ----- +----------------------------------------------------+ | ""^ # #?#?####### ?"?" + ###""""" #? | | "" ?# ##??#???###? ?""" #### ###""""" ## | | ? ? # #?? ? #?? ? """ #### ###""""" =#? | | ##### + ? ##? ? ##?# ###""""" ## | | ###?# # ????##? ??? ? ??## ### #? | | ###?# ##?#????############# ###+#######? | | ?##?# ! ####? | | #??## < ##??# | | ??### #???? | | ###?# ########## ############ | | ##### #####?##### # ### | | #### " ########### # ### | | "" # # # ## | | "" # # # ## | | """ # # # ## | | #### "" # """ + + # | | #### """ # """"" # # # # | | #### """ # """"" # # ## | | # """ # """"" # # # # | | # " # """ # # # | | # ########### ######## # # | | [ # "T" % [= ####?### #?? | | / * ===% ########?#### | | # [x* u%% ##########?#? | | # ###############g##### # #####? | | = ################# !%%@* # # ###### | | ################# %*!%= # # """ =###?## | | ######### ###### *%k= # + """ ####?# | | ###### # # """ #?#### | | ###### # # ###### | | ###### # ###+#####??#? | | #####+### # ## ## ### ###?###?# | | ? ## ## ## ## ### ######### | | """ ## ## ############# ######### | | """ ## ## ############# ### # = ## | | """ ## ## ############# ### # """## | | ## ## ############# ### # """## | | ####?##### ## #############+### # """## | | ?#?### ###+#######! ## + = ## | | ##### =%![=%+%""""""" ## # ## | | ? + *= ####=""""""" ## ######### | | ##### ####=""""""" ## ## # | | #?### ########### """"""" ## + """ # | | ##### ########### """"""" ## ## """ # | | ? #?### ########### ## ## """ # | | ? ? ##### ########### [%!## ## """ !# | | +######## #################+## = # # | | *! # """ # | | T =%! [ + """ # | | #################+## # """ # | +----------------------------------------------------+ Best States ------------- Heat Dissipation 41 Energy Generation 17 Energy Capacity 365 Matter Stores 400 Matter Capacity 400 Sight Range 18 Robot Scan Range 10 Terrain Scan Range 16 Terrain Scan Density 210 Evasion (%) 40 Targeting Accuracy 5 Item Schematics ----------------- None Robot Schematics ------------------ None Fabricated ------------ Nothing Alien Tech Used ----------------- None Achievements -------------- None Challenges ------------ None RPGLIKE | -11 -10 -10 -9 --------- Run | Scr Mat Min Mat Levels Raised 6 | . . 1 5 XP Earned 12805 | 3000 160 1700 7945 XP Spent 11250 | 3000 . 1475 6775 Upgrades 32 | 10 . 5 17 Propulsion Slot 2 | 1 . . 1 Utility Slot 2 | 1 . . 1 Weapon Slot 3 | 1 . . 2 Core Integrity 4 | . . . 4 Heat Dissipation 1 | . . . 1 Energy Generation 1 | 1 . . . Energy Storage 2 | 2 . . . Matter Storage 2 | 2 . . . Mass Support 1 | . . 1 . Inventory Capacity 5 | 1 . 2 2 Sight Range 2 | 1 . . 1 Sensor Range 5 | . . 2 3 Terrain Scan Density 2 | . . . 2 Protomatter Created 569 | . . 109 460 Integrity Restored 1356 | . . 222 1134 Core 1356 | . . 222 1134 Protomatter Decayed 103 | . . 37 66 Game ------ Seed ShadeMasterRailgun Manual? 0 Play Time 01:06:09 Cumulative 35.1 hours Start 2020.04.24 @ 20:30:47 End 2020.04.24 @ 22:16:34 Sessions 5 Manual Loads 0 Difficulty Rogue Special Mode Winter2019/RPGLIKE Game No. 27 Rogue 22 Adventurer 5 Explorer 0 Win Type - Total 0 Types 0/0/0/0/0/0/0 Lore% 26 Gallery% 31 Achievement% 21 Wizard Run 0 Options --------- ASCII 0 Keyboard 1 Movement Arrows Keybinds 0 Fullscreen 1 Font 18/SmallcapsGlow Map View 76x50 Tactical HUD 1 Map Filters NONE Filters NONE Steam 1 RUN: a9e77478-dada-480a-b6e1-6f43ed42f827